[Event "Titled Tuesday Blitz May 30 Late 2023"]
[White "Muradli, Mahammad"]
[Black "Wadsworth, Matthew J"]
[WhiteFideId "13409301"]
[BlackFideId "415804"]
[WhiteElo "2558"]
[BlackElo "2347"]
[Result "1-0"]
[Round "02"]
[TimeControl "180+2"]
[Date "2023.05.31"]
[WhiteClock "0:00:26"]
[BlackClock "0:00:06"]

1. Nf3 {[%clk 0:03:00]}  d5 {[%clk 0:02:59]} 2. d4 {[%clk 0:02:52]}  Nf6 {[%clk 0:02:58]} 3. c4 {[%clk 0:02:41]}  c6 {[%clk 0:02:53]} 4. e3 {[%clk 0:02:40]}  Bf5 {[%clk 0:02:49]} 5. Nc3 {[%clk 0:02:39]}  a6 {[%clk 0:02:50]} 6. Bd3 {[%clk 0:02:36]}  Bxd3 {[%clk 0:02:48]} 7. Qxd3 {[%clk 0:02:37]}  dxc4 {[%clk 0:02:41]} 8. Qxc4 {[%clk 0:02:32]}  e6 {[%clk 0:02:41]} 9. O-O {[%clk 0:02:31]}  Be7 {[%clk 0:02:38]} 10. e4 {[%clk 0:02:29]}  b5 {[%clk 0:02:38]} 11. Qe2 {[%clk 0:02:29]}  O-O {[%clk 0:02:33]} 12. Rd1 {[%clk 0:02:28]}  Nbd7 {[%clk 0:02:33]} 13. Bf4 {[%clk 0:02:23]}  Qb6 {[%clk 0:02:24]} 14. a4 {[%clk 0:02:23]}  Rfd8 {[%clk 0:01:59]} 15. Rac1 {[%clk 0:02:17]}  b4 {[%clk 0:01:56]} 16. Nb1 {[%clk 0:02:15]}  c5 {[%clk 0:01:43]} 17. d5 {[%clk 0:02:15]}  exd5 {[%clk 0:01:43]} 18. exd5 {[%clk 0:02:16]}  Bd6 {[%clk 0:01:34]} 19. Bg5 {[%clk 0:01:42]}  Re8 {[%clk 0:01:29]} 20. Qd3 {[%clk 0:01:41]}  h6 {[%clk 0:01:29]} 21. Bxf6 {[%clk 0:01:41]}  Nxf6 {[%clk 0:01:29]} 22. Nbd2 {[%clk 0:01:41]}  Bf4 {[%clk 0:01:23]} 23. Nc4 {[%clk 0:01:40]}  Qd8 {[%clk 0:01:20]} 24. Rb1 {[%clk 0:01:36]}  Ra7 {[%clk 0:01:11]} 25. g3 {[%clk 0:01:36]}  Bd6 {[%clk 0:01:09]} 26. Re1 {[%clk 0:01:31]}  Rae7 {[%clk 0:01:08]} 27. Rxe7 {[%clk 0:01:31]}  Rxe7 {[%clk 0:01:07]} 28. Ne3 {[%clk 0:01:29]}  Rd7 {[%clk 0:00:53]} 29. Qxa6 {[%clk 0:01:06]}  Bf8 {[%clk 0:00:47]} 30. Ne5 {[%clk 0:01:03]}  Rxd5 {[%clk 0:00:41]} 31. Nxd5 {[%clk 0:01:03]}  Qxd5 {[%clk 0:00:42]} 32. Re1 {[%clk 0:01:00]}  Ne4 {[%clk 0:00:40]} 33. Qc4 {[%clk 0:00:45]}  Qxe5 {[%clk 0:00:36]} 34. Rxe4 {[%clk 0:00:45]}  Qxb2 {[%clk 0:00:35]} 35. Rf4 {[%clk 0:00:46]}  Qb1+ {[%clk 0:00:28]} 36. Kg2 {[%clk 0:00:46]}  Qg6 {[%clk 0:00:27]} 37. a5 {[%clk 0:00:39]}  Bd6 {[%clk 0:00:20]} 38. Rf3 {[%clk 0:00:33]}  Qe6 {[%clk 0:00:20]} 39. Qxe6 {[%clk 0:00:23]}  fxe6 {[%clk 0:00:20]} 40. a6 {[%clk 0:00:24]}  Bb8 {[%clk 0:00:19]} 41. Kf1 {[%clk 0:00:24]}  c4 {[%clk 0:00:18]} 42. Rf4 {[%clk 0:00:25]}  Bxf4 {[%clk 0:00:10]} 43. a7 {[%clk 0:00:25]}  c3 {[%clk 0:00:06]} 44. a8=Q+ {[%clk 0:00:26]}  Kh7 {[%clk 0:00:06]} 45. Qe4+ {[%clk 0:00:26]} 1-0


[Site "https://www.chess.com"]

[Event "Titled Tuesday Blitz May 30 Late 2023"]
[White "Nasir, Zehn"]
[Black "Zakhartsov, Vladimir"]
[WhiteFideId "2613239"]
[BlackFideId "4145097"]
[WhiteElo "1993"]
[BlackElo "2495"]
[Result "1/2-1/2"]
[Round "02"]
[TimeControl "180+2"]
[Date "2023.05.31"]
[WhiteClock "0:00:07"]
[BlackClock "0:00:06"]

1. d4 {[%clk 0:03:00]}  Nf6 {[%clk 0:02:57]} 2. Bf4 {[%clk 0:03:00]}  d6 {[%clk 0:02:50]} 3. Nf3 {[%clk 0:02:56]}  g6 {[%clk 0:02:43]} 4. Nc3 {[%clk 0:02:54]}  a6 {[%clk 0:02:41]} 5. e4 {[%clk 0:02:54]}  b5 {[%clk 0:02:41]} 6. a3 {[%clk 0:02:43]}  Bb7 {[%clk 0:02:41]} 7. Bd3 {[%clk 0:02:38]}  Bg7 {[%clk 0:02:40]} 8. O-O {[%clk 0:02:34]}  O-O {[%clk 0:02:39]} 9. Re1 {[%clk 0:02:29]}  Nbd7 {[%clk 0:02:26]} 10. Qd2 {[%clk 0:02:28]}  c5 {[%clk 0:02:25]} 11. dxc5 {[%clk 0:02:15]}  Nxc5 {[%clk 0:02:24]} 12. Rad1 {[%clk 0:02:11]}  Rc8 {[%clk 0:02:14]} 13. Bh6 {[%clk 0:02:08]}  Re8 {[%clk 0:01:50]} 14. Bxg7 {[%clk 0:02:05]}  Kxg7 {[%clk 0:01:51]} 15. h4 {[%clk 0:01:55]}  h5 {[%clk 0:01:50]} 16. Qf4 {[%clk 0:01:48]}  Ne6 {[%clk 0:01:46]} 17. Qd2 {[%clk 0:01:35]}  Qb6 {[%clk 0:01:45]} 18. e5 {[%clk 0:01:29]}  Ng4 {[%clk 0:01:37]} 19. exd6 {[%clk 0:01:20]}  Qxd6 {[%clk 0:01:32]} 20. Be4 {[%clk 0:01:17]}  Qxd2 {[%clk 0:01:27]} 21. Rxd2 {[%clk 0:01:18]}  Bxe4 {[%clk 0:01:26]} 22. Nxe4 {[%clk 0:01:11]}  Rc7 {[%clk 0:01:26]} 23. c3 {[%clk 0:01:11]}  Rec8 {[%clk 0:01:25]} 24. Neg5 {[%clk 0:01:10]}  Nc5 {[%clk 0:01:21]} 25. Ne5 {[%clk 0:00:57]}  Nxe5 {[%clk 0:01:17]} 26. Rxe5 {[%clk 0:00:58]}  e6 {[%clk 0:01:08]} 27. Re1 {[%clk 0:00:54]}  Rd7 {[%clk 0:01:00]} 28. Rxd7 {[%clk 0:00:52]}  Nxd7 {[%clk 0:01:01]} 29. Rd1 {[%clk 0:00:52]}  Rc7 {[%clk 0:00:59]} 30. Rd6 {[%clk 0:00:49]}  Ra7 {[%clk 0:00:57]} 31. Kf1 {[%clk 0:00:37]}  Ne5 {[%clk 0:00:45]} 32. b3 {[%clk 0:00:28]}  Kf8 {[%clk 0:00:38]} 33. f4 {[%clk 0:00:24]}  Nd7 {[%clk 0:00:38]} 34. g3 {[%clk 0:00:24]}  Ke7 {[%clk 0:00:38]} 35. Rc6 {[%clk 0:00:23]}  a5 {[%clk 0:00:31]} 36. Ne4 {[%clk 0:00:22]}  Rb7 {[%clk 0:00:24]} 37. Ke2 {[%clk 0:00:21]}  b4 {[%clk 0:00:23]} 38. cxb4 {[%clk 0:00:20]}  axb4 {[%clk 0:00:24]} 39. a4 {[%clk 0:00:21]}  Nb8 {[%clk 0:00:22]} 40. Rc4 {[%clk 0:00:18]}  Na6 {[%clk 0:00:22]} 41. Nc5 {[%clk 0:00:17]}  Nxc5 {[%clk 0:00:21]} 42. Rxc5 {[%clk 0:00:18]}  Kd6 {[%clk 0:00:21]} 43. Ra5 {[%clk 0:00:17]}  Rc7 {[%clk 0:00:19]} 44. Rb5 {[%clk 0:00:16]}  Rc2+ {[%clk 0:00:19]} 45. Kd1 {[%clk 0:00:12]}  Rc3 {[%clk 0:00:20]} 46. Rxb4 {[%clk 0:00:12]}  Rxg3 {[%clk 0:00:21]} 47. a5 {[%clk 0:00:12]}  Kc5 {[%clk 0:00:21]} 48. Rb6 {[%clk 0:00:12]}  Rg2 {[%clk 0:00:20]} 49. b4+ {[%clk 0:00:12]}  Kc4 {[%clk 0:00:19]} 50. a6 {[%clk 0:00:12]}  e5 {[%clk 0:00:15]} 51. fxe5 {[%clk 0:00:11]}  g5 {[%clk 0:00:15]} 52. a7 {[%clk 0:00:10]}  Ra2 {[%clk 0:00:15]} 53. Rb7 {[%clk 0:00:08]}  gxh4 {[%clk 0:00:14]} 54. Rxf7 {[%clk 0:00:08]}  h3 {[%clk 0:00:14]} 55. Rf1 {[%clk 0:00:04]}  Rxa7 {[%clk 0:00:12]} 56. Ke2 {[%clk 0:00:03]}  h2 {[%clk 0:00:11]} 57. Rh1 {[%clk 0:00:03]}  Kd4 {[%clk 0:00:11]} 58. Kf3 {[%clk 0:00:03]}  Ra3+ {[%clk 0:00:08]} 59. Kg2 {[%clk 0:00:03]}  Ra2+ {[%clk 0:00:07]} 60. Kg3 {[%clk 0:00:03]}  Kxe5 {[%clk 0:00:05]} 61. Rxh2 {[%clk 0:00:04]}  Ra3+ {[%clk 0:00:06]} 62. Kg2 {[%clk 0:00:03]}  Ra2+ {[%clk 0:00:05]} 63. Kg3 {[%clk 0:00:03]}  Rxh2 {[%clk 0:00:05]} 64. Kxh2 {[%clk 0:00:04]}  Kd4 {[%clk 0:00:05]} 65. Kh3 {[%clk 0:00:05]}  Kc4 {[%clk 0:00:06]} 66. b5 {[%clk 0:00:05]}  Kxb5 {[%clk 0:00:07]} 67. Kh4 {[%clk 0:00:06]}  Ka4 {[%clk 0:00:06]} 68. Kxh5 {[%clk 0:00:07]} 1/2-1/2


[Site "https://www.chess.com"]

[Event "Titled Tuesday Blitz May 30 Late 2023"]
[White "Ibarra Jerez, Jose Carlos"]
[Black "Novik, Maxim"]
[WhiteFideId "2226332"]
[BlackFideId "4102924"]
[WhiteElo "2638"]
[BlackElo "2287"]
[Result "1-0"]
[Round "02"]
[TimeControl "180+2"]
[Date "2023.05.31"]
[WhiteClock "0:02:01"]
[BlackClock "0:00:19"]

1. e4 {[%clk 0:03:00]}  c6 {[%clk 0:02:59]} 2. Nf3 {[%clk 0:02:59]}  d5 {[%clk 0:02:59]} 3. d3 {[%clk 0:03:00]}  Nd7 {[%clk 0:02:58]} 4. Qe2 {[%clk 0:02:58]}  g6 {[%clk 0:02:48]} 5. g3 {[%clk 0:02:57]}  Bg7 {[%clk 0:02:49]} 6. Bg2 {[%clk 0:02:57]}  e5 {[%clk 0:02:48]} 7. O-O {[%clk 0:02:55]}  Ne7 {[%clk 0:02:48]} 8. h4 {[%clk 0:02:42]}  h6 {[%clk 0:02:32]} 9. a4 {[%clk 0:02:39]}  Qc7 {[%clk 0:02:26]} 10. b3 {[%clk 0:02:33]}  Nf6 {[%clk 0:02:23]} 11. exd5 {[%clk 0:02:23]}  Nfxd5 {[%clk 0:02:21]} 12. Bb2 {[%clk 0:02:23]}  O-O {[%clk 0:01:32]} 13. Bxe5 {[%clk 0:02:16]}  Bxe5 {[%clk 0:01:31]} 14. Qxe5 {[%clk 0:02:17]}  Qxe5 {[%clk 0:01:22]} 15. Nxe5 {[%clk 0:02:18]}  Be6 {[%clk 0:01:20]} 16. Re1 {[%clk 0:02:14]}  Rad8 {[%clk 0:01:15]} 17. Na3 {[%clk 0:02:13]}  Nf5 {[%clk 0:01:09]} 18. Nxg6 {[%clk 0:02:10]}  fxg6 {[%clk 0:01:02]} 19. Rxe6 {[%clk 0:02:09]}  Kf7 {[%clk 0:01:02]} 20. Rae1 {[%clk 0:02:06]}  Nde3 {[%clk 0:00:19]} 21. R6xe3 {[%clk 0:02:01]} 1-0


[Site "https://www.chess.com"]

[Event "Titled Tuesday Blitz May 30 Late 2023"]
[White "Marra, Eduardo da Costa"]
[Black "Xiong, Jeffery"]
[WhiteFideId "2106990"]
[BlackFideId "2047640"]
[WhiteElo "2252"]
[BlackElo "2726"]
[Result "0-1"]
[Round "02"]
[TimeControl "180+2"]
[Date "2023.05.31"]
[WhiteClock "0:00:04"]
[BlackClock "0:00:46"]

1. d4 {[%clk 0:03:00]}  d5 {[%clk 0:02:55]} 2. Nc3 {[%clk 0:03:00]}  Nf6 {[%clk 0:02:54]} 3. Bf4 {[%clk 0:03:00]}  e6 {[%clk 0:02:55]} 4. Nb5 {[%clk 0:03:00]}  Na6 {[%clk 0:02:54]} 5. e3 {[%clk 0:03:00]}  Be7 {[%clk 0:02:55]} 6. Nf3 {[%clk 0:02:59]}  O-O {[%clk 0:02:55]} 7. Ne5 {[%clk 0:02:57]}  Ne4 {[%clk 0:02:55]} 8. Bd3 {[%clk 0:02:52]}  f6 {[%clk 0:02:49]} 9. Nf3 {[%clk 0:02:51]}  c6 {[%clk 0:02:49]} 10. Nc3 {[%clk 0:02:44]}  Nxc3 {[%clk 0:02:41]} 11. bxc3 {[%clk 0:02:43]}  c5 {[%clk 0:02:42]} 12. O-O {[%clk 0:02:36]}  c4 {[%clk 0:02:42]} 13. Be2 {[%clk 0:02:36]}  Bd7 {[%clk 0:02:40]} 14. a4 {[%clk 0:02:34]}  Qa5 {[%clk 0:02:36]} 15. Qd2 {[%clk 0:02:23]}  Bxa4 {[%clk 0:02:36]} 16. h4 {[%clk 0:02:19]}  b5 {[%clk 0:02:36]} 17. h5 {[%clk 0:02:19]}  Qd8 {[%clk 0:02:32]} 18. Nh2 {[%clk 0:02:13]}  Bd6 {[%clk 0:02:32]} 19. e4 {[%clk 0:02:11]}  dxe4 {[%clk 0:02:31]} 20. f3 {[%clk 0:02:00]}  exf3 {[%clk 0:02:26]} 21. Bxf3 {[%clk 0:01:59]}  Rb8 {[%clk 0:02:26]} 22. Rfe1 {[%clk 0:01:57]}  Nc7 {[%clk 0:02:27]} 23. h6 {[%clk 0:01:56]}  g5 {[%clk 0:02:26]} 24. Bxd6 {[%clk 0:01:54]}  Qxd6 {[%clk 0:02:27]} 25. Ng4 {[%clk 0:01:51]}  Kh8 {[%clk 0:02:25]} 26. Re2 {[%clk 0:01:36]}  Rbd8 {[%clk 0:02:19]} 27. Rae1 {[%clk 0:01:35]}  b4 {[%clk 0:02:19]} 28. d5 {[%clk 0:01:13]}  bxc3 {[%clk 0:02:18]} 29. Qxc3 {[%clk 0:01:10]}  e5 {[%clk 0:02:19]} 30. Rd2 {[%clk 0:01:01]}  Qc5+ {[%clk 0:02:17]} 31. Kh1 {[%clk 0:01:01]}  Nxd5 {[%clk 0:02:13]} 32. Qa1 {[%clk 0:00:48]}  Bc6 {[%clk 0:02:13]} 33. Red1 {[%clk 0:00:45]}  c3 {[%clk 0:02:09]} 34. Rd3 {[%clk 0:00:44]}  Rd7 {[%clk 0:02:07]} 35. Ne3 {[%clk 0:00:34]}  Rfd8 {[%clk 0:02:04]} 36. Nxd5 {[%clk 0:00:27]}  Bxd5 {[%clk 0:02:05]} 37. Rxc3 {[%clk 0:00:28]}  Qf8 {[%clk 0:02:02]} 38. Bxd5 {[%clk 0:00:20]}  Rxd5 {[%clk 0:02:02]} 39. Rxd5 {[%clk 0:00:19]}  Rxd5 {[%clk 0:02:03]} 40. Rh3 {[%clk 0:00:16]}  g4 {[%clk 0:01:51]} 41. Rh5 {[%clk 0:00:13]}  Qf7 {[%clk 0:01:08]} 42. Rh4 {[%clk 0:00:11]}  f5 {[%clk 0:01:09]} 43. Qc3 {[%clk 0:00:10]}  Qf6 {[%clk 0:01:05]} 44. Rh5 {[%clk 0:00:10]}  Rd8 {[%clk 0:00:55]} 45. Kh2 {[%clk 0:00:10]}  Re8 {[%clk 0:00:50]} 46. Qc7 {[%clk 0:00:10]}  f4 {[%clk 0:00:49]} 47. Qxa7 {[%clk 0:00:09]}  g3+ {[%clk 0:00:49]} 48. Kh1 {[%clk 0:00:09]}  Rd8 {[%clk 0:00:48]} 49. Qg1 {[%clk 0:00:08]}  Qd6 {[%clk 0:00:46]} 50. Rf5 {[%clk 0:00:04]}  Kg8 {[%clk 0:00:46]} 51. Rg5+ {[%clk 0:00:04]}  Kf7 {[%clk 0:00:46]} 52. Qf1 {[%clk 0:00:04]}  Qxh6+ {[%clk 0:00:46]} 0-1


[Site "https://www.chess.com"]

[Event "Titled Tuesday Blitz May 30 Late 2023"]
[White "Zhigalko, Sergei"]
[Black "Keleberda, Tymur"]
[WhiteFideId "13502956"]
[BlackFideId "14174294"]
[WhiteElo "2626"]
[BlackElo "2198"]
[Result "1-0"]
[Round "02"]
[TimeControl "180+2"]
[Date "2023.05.31"]
[WhiteClock "0:00:02"]
[BlackClock "0:00:02"]

1. e4 {[%clk 0:03:00]}  c5 {[%clk 0:02:58]} 2. Nf3 {[%clk 0:03:00]}  d6 {[%clk 0:02:58]} 3. d4 {[%clk 0:03:00]}  cxd4 {[%clk 0:02:59]} 4. Qxd4 {[%clk 0:03:01]}  Nf6 {[%clk 0:03:00]} 5. Nc3 {[%clk 0:03:01]}  a6 {[%clk 0:03:00]} 6. Bc4 {[%clk 0:03:01]}  Nc6 {[%clk 0:03:00]} 7. Qd3 {[%clk 0:03:01]}  b5 {[%clk 0:02:34]} 8. Bb3 {[%clk 0:02:59]}  Bb7 {[%clk 0:02:32]} 9. Bf4 {[%clk 0:02:44]}  e6 {[%clk 0:01:56]} 10. O-O-O {[%clk 0:02:43]}  Qb6 {[%clk 0:01:56]} 11. Rhf1 {[%clk 0:01:37]}  Rd8 {[%clk 0:01:54]} 12. Kb1 {[%clk 0:01:32]}  Be7 {[%clk 0:01:53]} 13. Be3 {[%clk 0:01:31]}  Qc7 {[%clk 0:01:50]} 14. Bg5 {[%clk 0:01:22]}  h6 {[%clk 0:01:45]} 15. Bh4 {[%clk 0:01:22]}  Ng4 {[%clk 0:01:37]} 16. Bxe7 {[%clk 0:01:12]}  Qxe7 {[%clk 0:01:38]} 17. Qe2 {[%clk 0:01:10]}  Nge5 {[%clk 0:01:36]} 18. Nd4 {[%clk 0:01:07]}  Nxd4 {[%clk 0:01:32]} 19. Rxd4 {[%clk 0:01:08]}  Qh4 {[%clk 0:01:30]} 20. f4 {[%clk 0:01:02]}  Nc6 {[%clk 0:01:29]} 21. Rdd1 {[%clk 0:01:01]}  O-O {[%clk 0:01:19]} 22. g3 {[%clk 0:00:56]}  Qh3 {[%clk 0:01:14]} 23. g4 {[%clk 0:00:39]}  b4 {[%clk 0:00:59]} 24. Na4 {[%clk 0:00:33]}  e5 {[%clk 0:00:54]} 25. Rd3 {[%clk 0:00:29]}  Qh4 {[%clk 0:00:54]} 26. Bd5 {[%clk 0:00:21]}  Ba8 {[%clk 0:00:46]} 27. Qd2 {[%clk 0:00:13]}  exf4 {[%clk 0:00:41]} 28. Rxf4 {[%clk 0:00:12]}  Ne5 {[%clk 0:00:39]} 29. Rg3 {[%clk 0:00:11]}  Bxd5 {[%clk 0:00:37]} 30. exd5 {[%clk 0:00:07]}  Rb8 {[%clk 0:00:36]} 31. b3 {[%clk 0:00:04]}  Qg5 {[%clk 0:00:34]} 32. Qf2 {[%clk 0:00:03]}  Rfe8 {[%clk 0:00:19]} 33. Nb2 {[%clk 0:00:04]}  Re7 {[%clk 0:00:16]} 34. Rf5 {[%clk 0:00:03]}  Qg6 {[%clk 0:00:15]} 35. h3 {[%clk 0:00:03]}  Nd7 {[%clk 0:00:14]} 36. Rg1 {[%clk 0:00:02]}  Ne5 {[%clk 0:00:13]} 37. Qg2 {[%clk 0:00:02]}  Rb5 {[%clk 0:00:13]} 38. Rgf1 {[%clk 0:00:02]}  Rc5 {[%clk 0:00:13]} 39. Na4 {[%clk 0:00:02]}  Rb5 {[%clk 0:00:13]} 40. Qe4 {[%clk 0:00:02]}  Rc7 {[%clk 0:00:12]} 41. Qd4 {[%clk 0:00:02]}  Kh7 {[%clk 0:00:09]} 42. R1f4 {[%clk 0:00:03]}  Kg8 {[%clk 0:00:08]} 43. Qe4 {[%clk 0:00:03]}  Kh7 {[%clk 0:00:07]} 44. h4 {[%clk 0:00:03]}  Kg8 {[%clk 0:00:04]} 45. h5 {[%clk 0:00:04]}  Qh7 {[%clk 0:00:04]} 46. Kb2 {[%clk 0:00:03]}  Qh8 {[%clk 0:00:04]} 47. Qd4 {[%clk 0:00:03]}  Kh7 {[%clk 0:00:03]} 48. Qe4 {[%clk 0:00:02]}  Kg8 {[%clk 0:00:03]} 49. Rf1 {[%clk 0:00:02]}  f6 {[%clk 0:00:04]} 50. R5f4 {[%clk 0:00:02]}  Qh7 {[%clk 0:00:04]} 51. Rf5 {[%clk 0:00:02]}  Kh8 {[%clk 0:00:04]} 52. a3 {[%clk 0:00:03]}  Qg8 {[%clk 0:00:04]} 53. axb4 {[%clk 0:00:03]}  Qxd5 {[%clk 0:00:05]} 54. Qxd5 {[%clk 0:00:02]}  Rxd5 {[%clk 0:00:06]} 55. R1f2 {[%clk 0:00:02]}  Rb5 {[%clk 0:00:05]} 56. Ka3 {[%clk 0:00:02]}  Rc6 {[%clk 0:00:03]} 57. c4 {[%clk 0:00:02]}  Rb7 {[%clk 0:00:03]} 58. Rd2 {[%clk 0:00:02]}  Rxc4 {[%clk 0:00:02]} 59. Rxe5 {[%clk 0:00:02]}  Rcxb4 {[%clk 0:00:02]} 60. Re8+ {[%clk 0:00:03]}  Kh7 {[%clk 0:00:02]} 61. Rd3 {[%clk 0:00:03]}  Rxg4 {[%clk 0:00:02]} 62. Nb2 {[%clk 0:00:03]}  d5 {[%clk 0:00:01]} 63. Rxd5 {[%clk 0:00:02]}  Rg3 {[%clk 0:00:01]} 64. Nd3 {[%clk 0:00:03]}  Rg5 {[%clk 0:00:02]} 65. Rd4 {[%clk 0:00:02]}  Ra5+ {[%clk 0:00:02]} 66. Kb2 {[%clk 0:00:02]}  Rab5 {[%clk 0:00:02]} 67. Kc2 {[%clk 0:00:02]}  Rxh5 {[%clk 0:00:02]} 68. Rdd8 {[%clk 0:00:02]}  Rhb5 {[%clk 0:00:02]} 69. Nf4 {[%clk 0:00:02]} 1-0


[Site "https://www.chess.com"]

[Event "Titled Tuesday Blitz May 30 Late 2023"]
[White "Martic, Ivan"]
[Black "Sanal, Vahap"]
[WhiteFideId "929301"]
[BlackFideId "6300545"]
[WhiteElo "2360"]
[BlackElo "2606"]
[Result "0-1"]
[Round "02"]
[TimeControl "180+2"]
[Date "2023.05.31"]
[WhiteClock "0:00:03"]
[BlackClock "0:00:24"]

1. d4 {[%clk 0:02:59]}  d6 {[%clk 0:02:55]} 2. c4 {[%clk 0:02:59]}  e5 {[%clk 0:02:54]} 3. d5 {[%clk 0:02:59]}  a5 {[%clk 0:02:51]} 4. Nc3 {[%clk 0:02:58]}  Na6 {[%clk 0:02:52]} 5. e4 {[%clk 0:02:56]}  Nc5 {[%clk 0:02:52]} 6. Be3 {[%clk 0:02:52]}  h5 {[%clk 0:02:49]} 7. Nf3 {[%clk 0:02:46]}  g6 {[%clk 0:02:48]} 8. Bg5 {[%clk 0:02:27]}  f6 {[%clk 0:02:48]} 9. Be3 {[%clk 0:02:26]}  Bh6 {[%clk 0:02:48]} 10. Bxh6 {[%clk 0:02:09]}  Nxh6 {[%clk 0:02:48]} 11. Nd2 {[%clk 0:02:02]}  O-O {[%clk 0:02:40]} 12. Nb3 {[%clk 0:01:52]}  b6 {[%clk 0:02:27]} 13. Nxc5 {[%clk 0:01:49]}  bxc5 {[%clk 0:02:26]} 14. Bd3 {[%clk 0:01:49]}  f5 {[%clk 0:02:26]} 15. Qd2 {[%clk 0:01:44]}  f4 {[%clk 0:02:26]} 16. g3 {[%clk 0:01:43]}  Bg4 {[%clk 0:02:23]} 17. h3 {[%clk 0:01:37]}  Bf3 {[%clk 0:02:23]} 18. Rg1 {[%clk 0:01:37]}  Kh7 {[%clk 0:02:22]} 19. Be2 {[%clk 0:01:33]}  Bxe2 {[%clk 0:02:20]} 20. Qxe2 {[%clk 0:01:33]}  Qd7 {[%clk 0:02:13]} 21. gxf4 {[%clk 0:01:18]}  Rxf4 {[%clk 0:02:12]} 22. O-O-O {[%clk 0:01:16]}  Raf8 {[%clk 0:02:12]} 23. Rg2 {[%clk 0:01:16]}  Qxh3 {[%clk 0:02:12]} 24. Rdg1 {[%clk 0:01:16]}  Ng4 {[%clk 0:02:12]} 25. Rg3 {[%clk 0:01:10]}  Qh4 {[%clk 0:01:38]} 26. f3 {[%clk 0:01:03]}  Nh2 {[%clk 0:01:19]} 27. Rxg6 {[%clk 0:00:59]}  Nxf3 {[%clk 0:01:15]} 28. Rg7+ {[%clk 0:00:44]}  Kh8 {[%clk 0:01:14]} 29. Qg2 {[%clk 0:00:23]}  Rg4 {[%clk 0:00:36]} 30. Rxg4 {[%clk 0:00:19]}  Qxg4 {[%clk 0:00:35]} 31. Qxg4 {[%clk 0:00:18]}  hxg4 {[%clk 0:00:36]} 32. Rxg4 {[%clk 0:00:19]}  Nd4 {[%clk 0:00:37]} 33. Nb5 {[%clk 0:00:16]}  Rf1+ {[%clk 0:00:37]} 34. Kd2 {[%clk 0:00:16]}  Rf2+ {[%clk 0:00:38]} 35. Kc1 {[%clk 0:00:16]}  Rc2+ {[%clk 0:00:35]} 36. Kb1 {[%clk 0:00:15]}  Re2 {[%clk 0:00:33]} 37. a4 {[%clk 0:00:15]}  Nxb5 {[%clk 0:00:26]} 38. axb5 {[%clk 0:00:13]}  Kh7 {[%clk 0:00:23]} 39. Ka2 {[%clk 0:00:13]}  Re3 {[%clk 0:00:22]} 40. b3 {[%clk 0:00:11]}  Rf3 {[%clk 0:00:20]} 41. Ka3 {[%clk 0:00:07]}  Rf4 {[%clk 0:00:19]} 42. Rg2 {[%clk 0:00:07]}  Rxe4 {[%clk 0:00:19]} 43. Ka4 {[%clk 0:00:08]}  Re1 {[%clk 0:00:18]} 44. Ra2 {[%clk 0:00:08]}  Rf1 {[%clk 0:00:19]} 45. Kxa5 {[%clk 0:00:07]}  Rf8 {[%clk 0:00:19]} 46. b6 {[%clk 0:00:05]}  Ra8+ {[%clk 0:00:20]} 47. Kb5 {[%clk 0:00:05]}  Rxa2 {[%clk 0:00:20]} 48. b7 {[%clk 0:00:05]}  Ra3 {[%clk 0:00:21]} 49. b4 {[%clk 0:00:05]}  Rb3 {[%clk 0:00:22]} 50. Kc6 {[%clk 0:00:04]}  Rxb4 {[%clk 0:00:22]} 51. Kxc7 {[%clk 0:00:04]}  e4 {[%clk 0:00:23]} 52. Kxd6 {[%clk 0:00:03]}  e3 {[%clk 0:00:23]} 53. Kxc5 {[%clk 0:00:03]}  Rxb7 {[%clk 0:00:23]} 54. Kd4 {[%clk 0:00:02]}  e2 {[%clk 0:00:24]} 55. c5 {[%clk 0:00:03]}  e1=Q {[%clk 0:00:24]} 0-1


[Site "https://www.chess.com"]

[Event "Titled Tuesday Blitz May 30 Late 2023"]
[White "Kravtsiv, Martyn"]
[Black "Taboas Rodriguez, Daniel"]
[WhiteFideId "14113147"]
[BlackFideId "2208466"]
[WhiteElo "2695"]
[BlackElo "2365"]
[Result "1-0"]
[Round "02"]
[TimeControl "180+2"]
[Date "2023.05.31"]
[WhiteClock "0:02:16"]
[BlackClock "0:01:36"]

1. e4 {[%clk 0:03:00]}  e5 {[%clk 0:02:59]} 2. Nf3 {[%clk 0:03:00]}  Nc6 {[%clk 0:03:00]} 3. Nc3 {[%clk 0:03:00]}  Nf6 {[%clk 0:03:00]} 4. a4 {[%clk 0:03:00]}  Bb4 {[%clk 0:02:57]} 5. Bd3 {[%clk 0:02:58]}  O-O {[%clk 0:02:56]} 6. O-O {[%clk 0:02:57]}  d6 {[%clk 0:02:54]} 7. Nd5 {[%clk 0:02:55]}  Bc5 {[%clk 0:02:52]} 8. c3 {[%clk 0:02:55]}  a5 {[%clk 0:02:51]} 9. Bc2 {[%clk 0:02:55]}  Bg4 {[%clk 0:02:49]} 10. h3 {[%clk 0:02:53]}  Bh5 {[%clk 0:02:49]} 11. Nxf6+ {[%clk 0:02:52]}  Qxf6 {[%clk 0:02:49]} 12. g4 {[%clk 0:02:53]}  Bg6 {[%clk 0:02:49]} 13. d4 {[%clk 0:02:53]}  exd4 {[%clk 0:02:49]} 14. Bg5 {[%clk 0:02:53]}  Qe6 {[%clk 0:02:35]} 15. cxd4 {[%clk 0:02:53]}  Nb4 {[%clk 0:02:13]} 16. Bb3 {[%clk 0:02:42]}  Qxe4 {[%clk 0:02:05]} 17. dxc5 {[%clk 0:02:41]}  dxc5 {[%clk 0:02:04]} 18. Re1 {[%clk 0:02:40]}  Qc6 {[%clk 0:02:00]} 19. Ne5 {[%clk 0:02:40]}  Qa6 {[%clk 0:01:53]} 20. Bc4 {[%clk 0:02:39]}  Qa7 {[%clk 0:01:50]} 21. Nxg6 {[%clk 0:02:36]}  hxg6 {[%clk 0:01:50]} 22. Be7 {[%clk 0:02:36]}  Rfe8 {[%clk 0:01:47]} 23. Qf3 {[%clk 0:02:34]}  Nc2 {[%clk 0:01:36]} 24. Qxf7+ {[%clk 0:02:33]}  Kh7 {[%clk 0:01:36]} 25. Bd3 {[%clk 0:02:16]} 1-0


[Site "https://www.chess.com"]